[Event "Titled Tuesday Blitz March 07 Late 2023"]
[White "Good, Daniel"]
[Black "Jimenez Almeida, Luis David"]
[WhiteFideId "1302388"]
[BlackFideId "22242244"]
[WhiteElo "2258"]
[BlackElo "2245"]
[Result "0-1"]
[Round "01"]
[TimeControl "180+2"]
[Date "2023.03.07"]
[WhiteClock "0:00:11"]
[BlackClock "0:01:37"]

1. c4 {[%clk 0:02:56]}  g6 {[%clk 0:02:58]} 2. Nf3 {[%clk 0:02:54]}  Bg7 {[%clk 0:02:58]} 3. g3 {[%clk 0:02:51]}  f5 {[%clk 0:02:57]} 4. Bg2 {[%clk 0:02:32]}  Nf6 {[%clk 0:02:56]} 5. O-O {[%clk 0:02:32]}  d6 {[%clk 0:02:56]} 6. Nc3 {[%clk 0:02:29]}  O-O {[%clk 0:02:56]} 7. d4 {[%clk 0:02:28]}  Nc6 {[%clk 0:02:56]} 8. Re1 {[%clk 0:02:24]}  Ne4 {[%clk 0:02:53]} 9. Qd3 {[%clk 0:02:16]}  Nxc3 {[%clk 0:02:45]} 10. Qxc3 {[%clk 0:02:15]}  e5 {[%clk 0:02:44]} 11. dxe5 {[%clk 0:02:08]}  dxe5 {[%clk 0:02:36]} 12. Bg5 {[%clk 0:02:09]}  Qe8 {[%clk 0:02:34]} 13. e4 {[%clk 0:02:08]}  f4 {[%clk 0:02:28]} 14. gxf4 {[%clk 0:01:58]}  exf4 {[%clk 0:02:29]} 15. Qd2 {[%clk 0:01:58]}  Qf7 {[%clk 0:02:15]} 16. Bh4 {[%clk 0:01:18]}  h6 {[%clk 0:02:14]} 17. Rad1 {[%clk 0:00:50]}  Bg4 {[%clk 0:02:01]} 18. h3 {[%clk 0:00:28]}  Bxf3 {[%clk 0:02:00]} 19. Bxf3 {[%clk 0:00:29]}  Ne5 {[%clk 0:01:52]} 20. Bg4 {[%clk 0:00:20]}  g5 {[%clk 0:01:42]} 21. Kg2 {[%clk 0:00:11]}  gxh4 {[%clk 0:01:37]} 0-1


[Site "https://www.chess.com"]

[Event "Titled Tuesday Blitz March 07 Late 2023"]
[White "De Souza, Cristiano Gomes"]
[Black "Hollan, Martin"]
[WhiteFideId "2151758"]
[BlackFideId "360937"]
[WhiteElo "2068"]
[BlackElo "2370"]
[Result "1-0"]
[Round "01"]
[TimeControl "180+2"]
[Date "2023.03.07"]
[WhiteClock "0:00:11"]
[BlackClock "0:00:02"]

1. d4 {[%clk 0:02:56]}  Nf6 {[%clk 0:02:59]} 2. c4 {[%clk 0:02:54]}  e6 {[%clk 0:02:58]} 3. Nf3 {[%clk 0:02:53]}  d5 {[%clk 0:02:57]} 4. Nc3 {[%clk 0:02:52]}  Bb4 {[%clk 0:02:56]} 5. Bg5 {[%clk 0:02:52]}  h6 {[%clk 0:02:54]} 6. Bxf6 {[%clk 0:02:51]}  Qxf6 {[%clk 0:02:54]} 7. Rc1 {[%clk 0:02:52]}  c6 {[%clk 0:02:52]} 8. e3 {[%clk 0:02:51]}  O-O {[%clk 0:02:48]} 9. Ne5 {[%clk 0:02:50]}  Nd7 {[%clk 0:02:46]} 10. Nxd7 {[%clk 0:02:50]}  Bxd7 {[%clk 0:02:46]} 11. Be2 {[%clk 0:02:50]}  e5 {[%clk 0:02:32]} 12. dxe5 {[%clk 0:02:48]}  Qxe5 {[%clk 0:02:30]} 13. O-O {[%clk 0:02:47]}  Be6 {[%clk 0:02:19]} 14. cxd5 {[%clk 0:02:45]}  cxd5 {[%clk 0:02:09]} 15. Bf3 {[%clk 0:02:43]}  Rfd8 {[%clk 0:02:08]} 16. Qd3 {[%clk 0:02:34]}  Rac8 {[%clk 0:02:04]} 17. Rfd1 {[%clk 0:02:30]}  Bxc3 {[%clk 0:01:29]} 18. Rxc3 {[%clk 0:02:27]}  Rxc3 {[%clk 0:01:29]} 19. bxc3 {[%clk 0:02:26]}  Rc8 {[%clk 0:01:26]} 20. Rc1 {[%clk 0:02:13]}  Rc4 {[%clk 0:01:15]} 21. h3 {[%clk 0:02:09]}  g6 {[%clk 0:01:14]} 22. Qd2 {[%clk 0:01:55]}  Kg7 {[%clk 0:01:06]} 23. Rc2 {[%clk 0:01:54]}  h5 {[%clk 0:01:03]} 24. Rb2 {[%clk 0:01:50]}  b6 {[%clk 0:01:02]} 25. Rb3 {[%clk 0:01:47]}  h4 {[%clk 0:00:59]} 26. Ra3 {[%clk 0:01:42]}  a5 {[%clk 0:00:51]} 27. Rb3 {[%clk 0:01:41]}  a4 {[%clk 0:00:48]} 28. Rxb6 {[%clk 0:01:36]}  Rxc3 {[%clk 0:00:47]} 29. Rb5 {[%clk 0:01:29]}  Qc7 {[%clk 0:00:46]} 30. Qd4+ {[%clk 0:01:01]}  f6 {[%clk 0:00:45]} 31. Rb1 {[%clk 0:00:52]}  Rc4 {[%clk 0:00:40]} 32. Qd1 {[%clk 0:00:32]}  Rc3 {[%clk 0:00:08]} 33. Bxd5 {[%clk 0:00:24]}  Bf5 {[%clk 0:00:07]} 34. Rb7 {[%clk 0:00:20]}  Qxb7 {[%clk 0:00:03]} 35. Bxb7 {[%clk 0:00:20]}  a3 {[%clk 0:00:03]} 36. Bd5 {[%clk 0:00:19]}  Rd3 {[%clk 0:00:03]} 37. Qf3 {[%clk 0:00:16]}  Rd2 {[%clk 0:00:03]} 38. g4 {[%clk 0:00:13]}  hxg3 {[%clk 0:00:03]} 39. fxg3 {[%clk 0:00:13]}  Bd3 {[%clk 0:00:02]} 40. Bb3 {[%clk 0:00:13]}  f5 {[%clk 0:00:02]} 41. Qb7+ {[%clk 0:00:10]}  Kh6 {[%clk 0:00:02]} 42. Qb8 {[%clk 0:00:11]} 1-0


[Site "https://www.chess.com"]

[Event "Titled Tuesday Blitz March 07 Late 2023"]
[White "Petukhov, Dmitry"]
[Black "Kohler, Aran"]
[WhiteFideId "4142748"]
[BlackFideId "1002856"]
[WhiteElo "2311"]
[BlackElo "2252"]
[Result "1-0"]
[Round "01"]
[TimeControl "180+2"]
[Date "2023.03.07"]
[WhiteClock "0:00:56"]
[BlackClock "0:00:20"]

1. e4 {[%clk 0:02:52]}  c6 {[%clk 0:03:00]} 2. d4 {[%clk 0:02:51]}  d5 {[%clk 0:03:00]} 3. Nd2 {[%clk 0:02:50]}  dxe4 {[%clk 0:03:00]} 4. Nxe4 {[%clk 0:02:51]}  Bf5 {[%clk 0:03:00]} 5. Ng3 {[%clk 0:02:51]}  Bg6 {[%clk 0:03:00]} 6. Nf3 {[%clk 0:02:51]}  Nd7 {[%clk 0:02:59]} 7. h4 {[%clk 0:02:51]}  h6 {[%clk 0:02:59]} 8. h5 {[%clk 0:02:51]}  Bh7 {[%clk 0:02:59]} 9. Bd3 {[%clk 0:02:52]}  Ngf6 {[%clk 0:03:00]} 10. Bxh7 {[%clk 0:02:50]}  Nxh7 {[%clk 0:03:01]} 11. Bd2 {[%clk 0:02:50]}  e6 {[%clk 0:03:00]} 12. Qe2 {[%clk 0:02:50]}  Be7 {[%clk 0:03:01]} 13. O-O-O {[%clk 0:02:50]}  Ng5 {[%clk 0:03:00]} 14. Kb1 {[%clk 0:02:40]}  Nxf3 {[%clk 0:02:50]} 15. Qxf3 {[%clk 0:02:41]}  O-O {[%clk 0:02:49]} 16. Ne4 {[%clk 0:02:40]}  Nf6 {[%clk 0:02:38]} 17. g4 {[%clk 0:02:36]}  Nxe4 {[%clk 0:02:33]} 18. Qxe4 {[%clk 0:02:37]}  Qd5 {[%clk 0:02:33]} 19. Qxd5 {[%clk 0:02:26]}  cxd5 {[%clk 0:02:33]} 20. Bf4 {[%clk 0:02:25]}  Rac8 {[%clk 0:02:32]} 21. c3 {[%clk 0:02:25]}  b5 {[%clk 0:02:31]} 22. a3 {[%clk 0:02:23]}  a5 {[%clk 0:02:31]} 23. Be3 {[%clk 0:02:13]}  Rc6 {[%clk 0:02:28]} 24. f4 {[%clk 0:02:04]}  Rb8 {[%clk 0:02:18]} 25. g5 {[%clk 0:01:46]}  hxg5 {[%clk 0:02:17]} 26. fxg5 {[%clk 0:01:47]}  b4 {[%clk 0:02:13]} 27. cxb4 {[%clk 0:01:48]}  axb4 {[%clk 0:02:13]} 28. a4 {[%clk 0:01:49]}  b3 {[%clk 0:02:14]} 29. Rc1 {[%clk 0:01:47]}  Ra6 {[%clk 0:01:59]} 30. Rc7 {[%clk 0:01:39]}  Bd6 {[%clk 0:01:52]} 31. Rd7 {[%clk 0:01:35]}  Rxa4 {[%clk 0:01:47]} 32. Rg1 {[%clk 0:01:14]}  Rba8 {[%clk 0:01:18]} 33. Kc1 {[%clk 0:01:13]}  Ra1+ {[%clk 0:01:06]} 34. Kd2 {[%clk 0:01:13]}  Rxg1 {[%clk 0:01:02]} 35. Bxg1 {[%clk 0:01:14]}  Bb4+ {[%clk 0:00:58]} 36. Kd3 {[%clk 0:01:07]}  Rb8 {[%clk 0:00:43]} 37. g6 {[%clk 0:01:02]}  fxg6 {[%clk 0:00:35]} 38. hxg6 {[%clk 0:01:02]}  Be1 {[%clk 0:00:22]} 39. Bh2 {[%clk 0:01:01]}  Bh4 {[%clk 0:00:22]} 40. Bxb8 {[%clk 0:00:59]}  Bf6 {[%clk 0:00:20]} 41. Be5 {[%clk 0:00:56]} 1-0


[Site "https://www.chess.com"]

[Event "Titled Tuesday Blitz March 07 Late 2023"]
[White "Skaric, Djuro"]
[Black "Filgueira, Hernan"]
[WhiteFideId "934569"]
[BlackFideId "101770"]
[WhiteElo "2282"]
[BlackElo "2363"]
[Result "1-0"]
[Round "01"]
[TimeControl "180+2"]
[Date "2023.03.07"]
[WhiteClock "0:01:38"]
[BlackClock "0:00:22"]

1. g3 {[%clk 0:03:00]}  e5 {[%clk 0:02:58]} 2. Bg2 {[%clk 0:03:00]}  Nf6 {[%clk 0:02:58]} 3. d3 {[%clk 0:03:01]}  d5 {[%clk 0:02:58]} 4. Nf3 {[%clk 0:03:00]}  Nc6 {[%clk 0:02:57]} 5. O-O {[%clk 0:03:01]}  Be7 {[%clk 0:02:56]} 6. h3 {[%clk 0:03:02]}  O-O {[%clk 0:02:55]} 7. Nc3 {[%clk 0:03:02]}  h6 {[%clk 0:02:53]} 8. e4 {[%clk 0:03:03]}  d4 {[%clk 0:02:52]} 9. Ne2 {[%clk 0:03:02]}  Ne8 {[%clk 0:02:46]} 10. Ne1 {[%clk 0:03:01]}  Nd6 {[%clk 0:02:46]} 11. f4 {[%clk 0:03:02]}  f5 {[%clk 0:02:44]} 12. exf5 {[%clk 0:03:00]}  Bxf5 {[%clk 0:02:30]} 13. g4 {[%clk 0:02:59]}  Bh7 {[%clk 0:02:27]} 14. f5 {[%clk 0:02:57]}  Bg5 {[%clk 0:02:07]} 15. Ng3 {[%clk 0:02:55]}  Bxc1 {[%clk 0:01:56]} 16. Rxc1 {[%clk 0:02:53]}  Qd7 {[%clk 0:01:53]} 17. Ne4 {[%clk 0:02:50]}  Nxe4 {[%clk 0:01:52]} 18. dxe4 {[%clk 0:02:50]}  Qe7 {[%clk 0:01:51]} 19. a3 {[%clk 0:02:48]}  Nd8 {[%clk 0:01:45]} 20. Nd3 {[%clk 0:02:47]}  Nf7 {[%clk 0:01:44]} 21. Qf3 {[%clk 0:02:47]}  Qf6 {[%clk 0:01:41]} 22. Qg3 {[%clk 0:02:46]}  b6 {[%clk 0:01:39]} 23. Rf2 {[%clk 0:02:45]}  c5 {[%clk 0:01:38]} 24. b3 {[%clk 0:02:45]}  a5 {[%clk 0:01:37]} 25. a4 {[%clk 0:02:45]}  Rac8 {[%clk 0:01:35]} 26. Nb2 {[%clk 0:02:43]}  Qg5 {[%clk 0:01:29]} 27. Re1 {[%clk 0:02:36]}  Rc6 {[%clk 0:01:28]} 28. Bf1 {[%clk 0:02:36]}  Qf6 {[%clk 0:01:22]} 29. Nc4 {[%clk 0:02:32]}  Kh8 {[%clk 0:01:20]} 30. Bd3 {[%clk 0:02:32]}  Re8 {[%clk 0:01:18]} 31. Rg2 {[%clk 0:02:32]}  g5 {[%clk 0:01:14]} 32. fxg6 {[%clk 0:02:31]}  Bxg6 {[%clk 0:01:14]} 33. Rf1 {[%clk 0:02:32]}  Qg7 {[%clk 0:01:13]} 34. Rgf2 {[%clk 0:02:31]}  Re7 {[%clk 0:01:13]} 35. h4 {[%clk 0:02:32]}  h5 {[%clk 0:01:06]} 36. g5 {[%clk 0:02:30]}  Nd6 {[%clk 0:00:59]} 37. Rf6 {[%clk 0:02:21]}  Nxc4 {[%clk 0:00:50]} 38. Rxc6 {[%clk 0:02:19]}  Ne3 {[%clk 0:00:50]} 39. Rff6 {[%clk 0:02:17]}  Bf7 {[%clk 0:00:45]} 40. Rc8+ {[%clk 0:02:11]}  Re8 {[%clk 0:00:42]} 41. Rxe8+ {[%clk 0:02:10]}  Bxe8 {[%clk 0:00:42]} 42. Qxe5 {[%clk 0:02:10]}  Bg6 {[%clk 0:00:40]} 43. Rf8+ {[%clk 0:01:50]}  Kh7 {[%clk 0:00:39]} 44. Qxg7+ {[%clk 0:01:50]}  Kxg7 {[%clk 0:00:40]} 45. Rb8 {[%clk 0:01:50]}  Ng4 {[%clk 0:00:29]} 46. Rxb6 {[%clk 0:01:47]}  Ne5 {[%clk 0:00:30]} 47. Rb5 {[%clk 0:01:46]}  Nf3+ {[%clk 0:00:29]} 48. Kf2 {[%clk 0:01:46]}  Nxh4 {[%clk 0:00:30]} 49. Rxc5 {[%clk 0:01:46]}  Bf7 {[%clk 0:00:28]} 50. Rxa5 {[%clk 0:01:42]}  Ng6 {[%clk 0:00:28]} 51. Ra7 {[%clk 0:01:42]}  Kf8 {[%clk 0:00:27]} 52. Rb7 {[%clk 0:01:39]}  h4 {[%clk 0:00:25]} 53. a5 {[%clk 0:01:39]}  h3 {[%clk 0:00:25]} 54. Kg3 {[%clk 0:01:39]}  Be6 {[%clk 0:00:22]} 55. a6 {[%clk 0:01:38]} 1-0


[Site "https://www.chess.com"]

[Event "Titled Tuesday Blitz March 07 Late 2023"]
[White "Ozates, Tuna"]
[Black "Fajdetic, Hrvoje"]
[WhiteFideId "6354521"]
[BlackFideId "14501945"]
[WhiteElo "2151"]
[BlackElo "2185"]
[Result "1/2-1/2"]
[Round "01"]
[TimeControl "180+2"]
[Date "2023.03.07"]
[WhiteClock "0:00:02"]
[BlackClock "0:00:02"]

1. d4 {[%clk 0:03:00]}  e6 {[%clk 0:02:59]} 2. c4 {[%clk 0:03:00]}  f5 {[%clk 0:03:00]} 3. g3 {[%clk 0:03:00]}  Nf6 {[%clk 0:03:00]} 4. Bg2 {[%clk 0:03:01]}  Be7 {[%clk 0:03:01]} 5. Nh3 {[%clk 0:03:02]}  O-O {[%clk 0:03:01]} 6. O-O {[%clk 0:03:02]}  d6 {[%clk 0:03:02]} 7. Nf4 {[%clk 0:03:00]}  e5 {[%clk 0:02:58]} 8. dxe5 {[%clk 0:02:59]}  dxe5 {[%clk 0:02:58]} 9. Nd5 {[%clk 0:03:00]}  Nxd5 {[%clk 0:02:51]} 10. cxd5 {[%clk 0:02:57]}  Bd6 {[%clk 0:02:45]} 11. Nc3 {[%clk 0:02:57]}  a6 {[%clk 0:02:43]} 12. a4 {[%clk 0:02:41]}  Nd7 {[%clk 0:02:43]} 13. a5 {[%clk 0:02:41]}  Nf6 {[%clk 0:02:41]} 14. Qb3 {[%clk 0:02:35]}  Qe8 {[%clk 0:02:38]} 15. Qc4 {[%clk 0:02:31]}  Qh5 {[%clk 0:02:37]} 16. f3 {[%clk 0:02:13]}  Bd7 {[%clk 0:02:12]} 17. Be3 {[%clk 0:02:07]}  Qf7 {[%clk 0:01:59]} 18. Bc5 {[%clk 0:02:07]}  Rac8 {[%clk 0:01:58]} 19. e4 {[%clk 0:01:59]}  fxe4 {[%clk 0:01:43]} 20. fxe4 {[%clk 0:01:59]}  Qh5 {[%clk 0:01:43]} 21. Qb4 {[%clk 0:01:54]}  Ng4 {[%clk 0:01:33]} 22. h3 {[%clk 0:01:53]}  Ne3 {[%clk 0:01:22]} 23. Bxd6 {[%clk 0:01:48]}  cxd6 {[%clk 0:01:19]} 24. Qxd6 {[%clk 0:01:46]}  Nxf1 {[%clk 0:01:05]} 25. Qxd7 {[%clk 0:01:45]}  Nxg3 {[%clk 0:01:01]} 26. d6 {[%clk 0:01:37]}  Ne2+ {[%clk 0:00:58]} 27. Kh1 {[%clk 0:01:26]}  Nf4 {[%clk 0:00:57]} 28. Nd5 {[%clk 0:01:17]}  Rcd8 {[%clk 0:00:54]} 29. Nxf4 {[%clk 0:01:15]}  exf4 {[%clk 0:00:51]} 30. Qe6+ {[%clk 0:01:15]}  Kh8 {[%clk 0:00:49]} 31. d7 {[%clk 0:00:46]}  f3 {[%clk 0:00:47]} 32. Bf1 {[%clk 0:00:46]}  Qg5 {[%clk 0:00:33]} 33. Rd1 {[%clk 0:00:41]}  h6 {[%clk 0:00:20]} 34. e5 {[%clk 0:00:34]}  f2 {[%clk 0:00:12]} 35. Bg2 {[%clk 0:00:29]}  Qf4 {[%clk 0:00:05]} 36. Qd5 {[%clk 0:00:19]}  Qf5 {[%clk 0:00:04]} 37. Qd6 {[%clk 0:00:13]}  Qf4 {[%clk 0:00:03]} 38. Qd5 {[%clk 0:00:06]}  Qf5 {[%clk 0:00:04]} 39. Qd4 {[%clk 0:00:04]}  Qf4 {[%clk 0:00:04]} 40. Qc3 {[%clk 0:00:03]}  Qf5 {[%clk 0:00:04]} 41. Qe3 {[%clk 0:00:02]}  Qe6 {[%clk 0:00:03]} 42. Rd6 {[%clk 0:00:02]}  Qf5 {[%clk 0:00:02]} 43. Rd1 {[%clk 0:00:02]}  Qe6 {[%clk 0:00:02]} 44. Bf1 {[%clk 0:00:02]}  Qg6 {[%clk 0:00:02]} 45. Bg2 {[%clk 0:00:02]}  Qe6 {[%clk 0:00:02]} 1/2-1/2


[Site "https://www.chess.com"]

[Event "Titled Tuesday Blitz March 07 Late 2023"]
[White "Torres Dominguez, David"]
[Black "Danielian, Vardan"]
[WhiteFideId "2220857"]
[BlackFideId "13301594"]
[WhiteElo "1999"]
[BlackElo "2573"]
[Result "1-0"]
[Round "01"]
[TimeControl "180+2"]
[Date "2023.03.07"]
[WhiteClock "0:00:13"]
[BlackClock "0:00:20"]

1. e4 {[%clk 0:03:00]}  c5 {[%clk 0:02:59]} 2. Nc3 {[%clk 0:03:01]}  d6 {[%clk 0:02:54]} 3. Bb5+ {[%clk 0:03:01]}  Bd7 {[%clk 0:02:54]} 4. Bxd7+ {[%clk 0:03:01]}  Nxd7 {[%clk 0:02:54]} 5. d3 {[%clk 0:03:02]}  g6 {[%clk 0:02:55]} 6. f4 {[%clk 0:03:02]}  Bg7 {[%clk 0:02:55]} 7. Nf3 {[%clk 0:03:03]}  Ngf6 {[%clk 0:02:56]} 8. O-O {[%clk 0:03:04]}  O-O {[%clk 0:02:56]} 9. Qe1 {[%clk 0:03:02]}  e6 {[%clk 0:02:48]} 10. Qh4 {[%clk 0:03:00]}  Ne8 {[%clk 0:02:38]} 11. Qh3 {[%clk 0:02:59]}  Qe7 {[%clk 0:02:33]} 12. f5 {[%clk 0:02:58]}  Ne5 {[%clk 0:02:27]} 13. Bh6 {[%clk 0:02:40]}  Nxf3+ {[%clk 0:02:13]} 14. Rxf3 {[%clk 0:02:38]}  Bxh6 {[%clk 0:02:10]} 15. Qxh6 {[%clk 0:02:31]}  Qf6 {[%clk 0:02:10]} 16. fxe6 {[%clk 0:02:23]}  Qxe6 {[%clk 0:01:55]} 17. Nd5 {[%clk 0:02:16]}  f6 {[%clk 0:01:51]} 18. Raf1 {[%clk 0:02:13]}  Qe5 {[%clk 0:01:37]} 19. c3 {[%clk 0:02:10]}  Rf7 {[%clk 0:01:37]} 20. Qh4 {[%clk 0:02:05]}  Rd8 {[%clk 0:01:27]} 21. Nxf6+ {[%clk 0:01:58]}  Nxf6 {[%clk 0:01:26]} 22. Rxf6 {[%clk 0:01:58]}  Rxf6 {[%clk 0:01:26]} 23. Rxf6 {[%clk 0:01:48]}  Re8 {[%clk 0:00:58]} 24. Qf2 {[%clk 0:01:46]}  b6 {[%clk 0:00:53]} 25. h3 {[%clk 0:01:42]}  d5 {[%clk 0:00:51]} 26. exd5 {[%clk 0:01:31]}  Qxd5 {[%clk 0:00:51]} 27. a3 {[%clk 0:01:31]}  Qxd3 {[%clk 0:00:49]} 28. Rf7 {[%clk 0:01:23]}  Qd1+ {[%clk 0:00:45]} 29. Kh2 {[%clk 0:01:20]}  Qd6+ {[%clk 0:00:44]} 30. Kg1 {[%clk 0:01:19]}  Re1+ {[%clk 0:00:37]} 31. Qxe1 {[%clk 0:01:13]}  Kxf7 {[%clk 0:00:38]} 32. Qe2 {[%clk 0:01:08]}  h5 {[%clk 0:00:34]} 33. Kf1 {[%clk 0:01:05]}  Qf4+ {[%clk 0:00:29]} 34. Qf2 {[%clk 0:01:03]}  Qxf2+ {[%clk 0:00:29]} 35. Kxf2 {[%clk 0:01:04]}  Kf6 {[%clk 0:00:30]} 36. h4 {[%clk 0:01:02]}  Kf5 {[%clk 0:00:28]} 37. Kf3 {[%clk 0:01:02]}  c4 {[%clk 0:00:27]} 38. a4 {[%clk 0:01:00]}  a6 {[%clk 0:00:26]} 39. g3 {[%clk 0:00:46]}  g5 {[%clk 0:00:18]} 40. hxg5 {[%clk 0:00:36]}  Kxg5 {[%clk 0:00:19]} 41. Kf2 {[%clk 0:00:14]}  Kf5 {[%clk 0:00:17]} 42. Kf3 {[%clk 0:00:14]}  Ke5 {[%clk 0:00:17]} 43. Ke3 {[%clk 0:00:14]}  Kf5 {[%clk 0:00:18]} 44. Kf3 {[%clk 0:00:13]}  Kg5 {[%clk 0:00:18]} 45. Kf2 {[%clk 0:00:12]}  Kg4 {[%clk 0:00:19]} 46. Kg2 {[%clk 0:00:12]}  a5 {[%clk 0:00:19]} 47. Kf2 {[%clk 0:00:09]}  Kh3 {[%clk 0:00:19]} 48. Kf3 {[%clk 0:00:09]}  Kh2 {[%clk 0:00:20]} 49. g4 {[%clk 0:00:07]}  hxg4+ {[%clk 0:00:17]} 50. Kxg4 {[%clk 0:00:07]}  Kg2 {[%clk 0:00:18]} 51. Kf4 {[%clk 0:00:08]}  Kf2 {[%clk 0:00:18]} 52. Ke4 {[%clk 0:00:09]}  Ke2 {[%clk 0:00:19]} 53. Kd4 {[%clk 0:00:09]}  Kd2 {[%clk 0:00:19]} 54. Kxc4 {[%clk 0:00:10]}  Kc2 {[%clk 0:00:20]} 55. Kb5 {[%clk 0:00:11]}  Kxb2 {[%clk 0:00:20]} 56. Kxb6 {[%clk 0:00:11]}  Kxc3 {[%clk 0:00:19]} 57. Kxa5 {[%clk 0:00:12]}  Kc4 {[%clk 0:00:19]} 58. Kb6 {[%clk 0:00:12]}  Kb4 {[%clk 0:00:19]} 59. a5 {[%clk 0:00:12]}  Kc4 {[%clk 0:00:20]} 60. a6 {[%clk 0:00:13]} 1-0


[Site "https://www.chess.com"]

[Event "Titled Tuesday Blitz March 07 Late 2023"]
[White "Rodriguez Santiago, Jaime"]
[Black "Gubajdullin, Alexei"]
[WhiteFideId "3100898"]
[BlackFideId "4141202"]
[WhiteElo "2025"]
[BlackElo "2267"]
[Result "0-1"]
[Round "01"]
[TimeControl "180+2"]
[Date "2023.03.07"]
[WhiteClock "0:01:31"]
[BlackClock "0:01:52"]

1. c4 {[%clk 0:03:00]}  Nf6 {[%clk 0:02:59]} 2. Nc3 {[%clk 0:02:58]}  g6 {[%clk 0:02:59]} 3. g3 {[%clk 0:02:59]}  Bg7 {[%clk 0:02:59]} 4. Bg2 {[%clk 0:02:59]}  O-O {[%clk 0:02:59]} 5. e4 {[%clk 0:03:00]}  d6 {[%clk 0:03:00]} 6. Nge2 {[%clk 0:03:00]}  Nc6 {[%clk 0:03:00]} 7. O-O {[%clk 0:03:00]}  e5 {[%clk 0:02:59]} 8. d3 {[%clk 0:03:00]}  Nd7 {[%clk 0:02:58]} 9. h3 {[%clk 0:03:00]}  Nc5 {[%clk 0:02:57]} 10. Be3 {[%clk 0:03:00]}  Ne6 {[%clk 0:02:57]} 11. Kh2 {[%clk 0:02:52]}  Ned4 {[%clk 0:02:56]} 12. f4 {[%clk 0:02:45]}  Nxe2 {[%clk 0:02:55]} 13. Nxe2 {[%clk 0:02:44]}  exf4 {[%clk 0:02:54]} 14. gxf4 {[%clk 0:02:44]}  Bxb2 {[%clk 0:02:53]} 15. d4 {[%clk 0:02:41]}  Bxa1 {[%clk 0:02:50]} 16. Qxa1 {[%clk 0:02:40]}  f6 {[%clk 0:02:48]} 17. e5 {[%clk 0:02:33]}  fxe5 {[%clk 0:02:46]} 18. dxe5 {[%clk 0:02:29]}  Be6 {[%clk 0:02:35]} 19. c5 {[%clk 0:02:20]}  dxe5 {[%clk 0:02:34]} 20. Qb2 {[%clk 0:02:08]}  Qd3 {[%clk 0:02:30]} 21. Rf3 {[%clk 0:02:01]}  Bd5 {[%clk 0:02:16]} 22. Rg3 {[%clk 0:01:57]}  Bxg2 {[%clk 0:02:14]} 23. Kxg2 {[%clk 0:01:58]}  Qd5+ {[%clk 0:02:10]} 24. Kh2 {[%clk 0:01:57]}  Nd4 {[%clk 0:02:02]} 25. Nxd4 {[%clk 0:01:45]}  exd4 {[%clk 0:02:01]} 26. Bxd4 {[%clk 0:01:42]}  Rxf4 {[%clk 0:01:58]} 27. Bh8 {[%clk 0:01:39]}  Rf7 {[%clk 0:01:56]} 28. Be5 {[%clk 0:01:33]}  Raf8 {[%clk 0:01:54]} 29. h4 {[%clk 0:01:31]}  Rf2+ {[%clk 0:01:52]} 0-1


[Site "https://www.chess.com"]

[Event "Titled Tuesday Blitz March 07 Late 2023"]
[White "Lopez Perdomo, Juan David"]
[Black "Chor, Kevin"]
[WhiteFideId "4405137"]
[BlackFideId "2090740"]
[WhiteElo "1965"]
[BlackElo "2553"]
[Result "0-1"]
[Round "01"]
[TimeControl "180+2"]
[Date "2023.03.07"]
[WhiteClock "0:01:07"]
[BlackClock "0:00:55"]

1. e4 {[%clk 0:03:00]}  c5 {[%clk 0:02:53]} 2. d4 {[%clk 0:02:59]}  cxd4 {[%clk 0:02:53]} 3. c3 {[%clk 0:03:00]}  g6 {[%clk 0:02:53]} 4. cxd4 {[%clk 0:02:59]}  d5 {[%clk 0:02:52]} 5. exd5 {[%clk 0:02:59]}  Nf6 {[%clk 0:02:52]} 6. Nf3 {[%clk 0:02:59]}  Nxd5 {[%clk 0:02:50]} 7. Nc3 {[%clk 0:03:00]}  Nxc3 {[%clk 0:02:47]} 8. bxc3 {[%clk 0:03:00]}  Bg7 {[%clk 0:02:48]} 9. Be2 {[%clk 0:02:56]}  Qc7 {[%clk 0:02:41]} 10. O-O {[%clk 0:02:48]}  Qxc3 {[%clk 0:02:32]} 11. Bg5 {[%clk 0:02:22]}  O-O {[%clk 0:02:17]} 12. Bxe7 {[%clk 0:02:18]}  Re8 {[%clk 0:02:17]} 13. Re1 {[%clk 0:02:08]}  Nc6 {[%clk 0:01:56]} 14. Rc1 {[%clk 0:01:56]}  Qa5 {[%clk 0:01:43]} 15. Rc5 {[%clk 0:01:55]}  Qb6 {[%clk 0:01:24]} 16. Bh4 {[%clk 0:01:29]}  Nxd4 {[%clk 0:01:14]} 17. Bc4 {[%clk 0:01:07]}  Nxf3+ {[%clk 0:01:01]} 18. gxf3 {[%clk 0:01:06]}  Rxe1+ {[%clk 0:01:01]} 19. Qxe1 {[%clk 0:01:06]}  Qxc5 {[%clk 0:01:00]} 20. Qe8+ {[%clk 0:01:06]}  Qf8 {[%clk 0:01:00]} 21. Bxf7+ {[%clk 0:01:07]}  Kh8 {[%clk 0:00:55]} 0-1


[Site "https://www.chess.com"]

[Event "Titled Tuesday Blitz March 07 Late 2023"]
[White "Klose, Eli"]
[Black "Antonova, Nadezhda"]
[WhiteFideId "16242955"]
[BlackFideId "14700182"]
[WhiteElo "2552"]
[BlackElo "1885"]
[Result "1-0"]
[Round "01"]
[TimeControl "180+2"]
[Date "2023.03.07"]
[WhiteClock "0:00:21"]
[BlackClock "0:00:01"]

1. e4 {[%clk 0:02:59]}  c6 {[%clk 0:02:55]} 2. Nc3 {[%clk 0:02:50]}  d5 {[%clk 0:02:54]} 3. g3 {[%clk 0:02:48]}  d4 {[%clk 0:02:47]} 4. Nce2 {[%clk 0:02:47]}  e5 {[%clk 0:02:45]} 5. d3 {[%clk 0:02:46]}  Nf6 {[%clk 0:02:44]} 6. Bg2 {[%clk 0:02:43]}  Be7 {[%clk 0:02:41]} 7. h3 {[%clk 0:02:38]}  O-O {[%clk 0:02:40]} 8. f4 {[%clk 0:02:38]}  Nbd7 {[%clk 0:02:35]} 9. Nf3 {[%clk 0:02:36]}  Bd6 {[%clk 0:02:23]} 10. O-O {[%clk 0:02:33]}  Re8 {[%clk 0:02:20]} 11. g4 {[%clk 0:02:27]}  c5 {[%clk 0:02:16]} 12. Qe1 {[%clk 0:02:02]}  exf4 {[%clk 0:02:10]} 13. Bxf4 {[%clk 0:01:55]}  Bxf4 {[%clk 0:02:08]} 14. Nxf4 {[%clk 0:01:56]}  Ne5 {[%clk 0:02:08]} 15. Qg3 {[%clk 0:01:50]}  Nxf3+ {[%clk 0:01:52]} 16. Rxf3 {[%clk 0:01:48]}  Nd7 {[%clk 0:01:52]} 17. Nd5 {[%clk 0:01:41]}  Ne5 {[%clk 0:01:52]} 18. Rf2 {[%clk 0:01:41]}  Bd7 {[%clk 0:01:46]} 19. Raf1 {[%clk 0:01:40]}  Bc6 {[%clk 0:01:46]} 20. Nf4 {[%clk 0:01:38]}  Rc8 {[%clk 0:01:39]} 21. Nh5 {[%clk 0:01:36]}  Rc7 {[%clk 0:01:33]} 22. b3 {[%clk 0:01:35]}  b5 {[%clk 0:01:32]} 23. Rf5 {[%clk 0:01:34]}  Rce7 {[%clk 0:01:29]} 24. g5 {[%clk 0:01:29]}  Kh8 {[%clk 0:01:16]} 25. Nf6 {[%clk 0:01:24]}  Nd7 {[%clk 0:00:53]} 26. Nxe8 {[%clk 0:01:22]}  Qxe8 {[%clk 0:00:53]} 27. Qd6 {[%clk 0:01:10]}  Ba8 {[%clk 0:00:47]} 28. Qc7 {[%clk 0:01:02]}  a6 {[%clk 0:00:34]} 29. h4 {[%clk 0:00:55]}  g6 {[%clk 0:00:30]} 30. R5f2 {[%clk 0:00:53]}  Kg7 {[%clk 0:00:25]} 31. Bh3 {[%clk 0:00:50]}  Ne5 {[%clk 0:00:11]} 32. Qxc5 {[%clk 0:00:50]}  Qd8 {[%clk 0:00:06]} 33. Rf6 {[%clk 0:00:39]}  h6 {[%clk 0:00:06]} 34. Rd6 {[%clk 0:00:34]}  Qe8 {[%clk 0:00:05]} 35. Qxd4 {[%clk 0:00:33]}  hxg5 {[%clk 0:00:05]} 36. hxg5 {[%clk 0:00:34]}  Qh8 {[%clk 0:00:05]} 37. Bg2 {[%clk 0:00:28]}  Qh4 {[%clk 0:00:04]} 38. Qe3 {[%clk 0:00:21]}  Ng4 {[%clk 0:00:03]} 39. Qf4 {[%clk 0:00:21]}  Bb7 {[%clk 0:00:01]} 40. Rf6 {[%clk 0:00:21]} 1-0


[Site "https://www.chess.com"]